Cogmind - Beta 11 X5 @@@ ROGUE MODE // 2021.06.06 @ 00:31:49 Player: Mares Result: Destroyed by G-50 Soldier with Heavy Laser Performance ------------- Evolutions (5) 2500 Regions Visited (22) 4400 Robots Destroyed (205) 1025 Value Destroyed (7339) 7339 Prototype IDs (57) 1140 Alien Tech Used (0) 0 Bonus (5323) 5323 TOTAL SCORE: 21727 Bonus ------- High Alert Combat Kills 111 Follower Combat Kills 2512 Entered Garrisons 600 Used RIF Installer 1500 Aligned with FarCom 300 Met Data Miner 300 Met Zhirov 300 Built Enhanced Grunts 300 A7 Reached Mainframe 300 Met R17 at Cetus 500 Read Decrypted Archives 300 Friendly Fire -1700 Cogmind --------- Core Integrity 0/1000 Matter 204/300 Energy 194/200 System Corruption 20% Temperature Hot (247) Movement Rolling (135) Ox3 Location -5/Hub_04(d) Parts ------- > --- POWER (1) -------- Cold Fusion Reactor > --- PROPULSION (5) --- Wheel Armored Huge Wheel > --- UTILITY (9) ------ Huge Storage Unit Terrain Scan Processor Improved Target Analyzer Centrium Medium Armor Plating Centrium Medium Armor Plating Improved Hacking Suite Advanced Hacking Suite > --- WEAPON (2) ------- KE Penetrator Heavy Flak Cannon > --- INVENTORY (25) --- Light Angular Momentum Engine Micro Fission Core Quantum Reactor Wheel Wheel Huge Storage Unit Experimental Sensor Array Improved Heavy Armor Plating Centrium Medium Armor Plating Advanced Shield Generator Relay Coupler [NC] (22) Relay Coupler [NC] (26) High-powered Shock Rifle Tesla Rifle Advanced Variable Charge Gun Advanced Variable Charge Gun Advanced Variable Charge Gun Neutron Cannon Gauss Rifle Gauss Rifle Linear Accelerator Linear Accelerator Improved Remote Datajack Peak State ------------ > --- POWER ------------ Neutrino Core > --- PROPULSION ------- Carbon-fiber Leg Carbon-fiber Leg Improved Carbon-fiber Leg Flexi-carbon Leg Myomer Leg > --- UTILITY ---------- Huge Storage Unit Machine Analyzer Improved Medium Armor Plating Layered Light Armor Plating Improved Hacking Suite Improved Hacking Suite Advanced Hacking Suite System Shield Advanced System Shield > --- WEAPON ----------- Heavy Plasma Cannon Field Lobotomy Kit > --- INVENTORY -------- Light Angular Momentum Engine Cold Fusion Reactor Micro Fission Core Antimatter Reactor Carbon-fiber Leg Advanced Heat Sink Huge Storage Unit Experimental Sensor Array Improved Heavy Armor Plating Improved Heavy Armor Plating Advanced Shield Generator Relay Coupler [NC] Relay Coupler [NC] Cooled Particle Cannon Neutron Cannon KE Penetrator KE Penetrator Heavy Flak Cannon Linear Accelerator Linear Accelerator Advanced EMP Blaster Improved Remote Datajack [Rating: 92] Favorites ----------- Power Cold Fusion Reactor Engine Ion Engine Power Core Micro Fission Core Reactor Cold Fusion Reactor Propulsion Improved Carbon-fiber Leg Treads Medium Treads Leg Improved Carbon-fiber Leg Wheel Wheel Utility Huge Storage Unit Device Experimental Sensor Array Storage Huge Storage Unit Processor Machine Analyzer Hackware Hacking Suite Protection Hardened Medium Armor Plating Weapon Cooled Particle Cannon Energy Gun Particle Gun Energy Cannon Cooled Particle Cannon Ballistic Gun Gauss Rifle Ballistic Cannon Heavy Flak Cannon Launcher Advanced EMP Blaster Special Weapon Improved Remote Datajack Impact Weapon Power Maul Slashing Weapon Axe Build | -11 -10 -10 -10 -9 -8 -8 -8 -8 -7 -7 -7 -7 -6 -6 -6 -6 -5 -5 -5 -5 -5 -5 ------- Run | Scr Mat Min Exi Min Mat Gar Mat Gar Fac Was Fac Gar Fac Low Low Dat Pro Fac Ext Cet Arc Hub Slots Evolved 10 | . . . . . 4 . . . 2 . . . 2 . . . . 2 . . . . Power . | . . . . . . . . . . . . . . . . . . . . . . . Propulsion 3 | . . . . . 2 . . . . . . . . . . . . 1 . . . . Utility 7 | . . . . . 2 . . . 2 . . . 2 . . . . 1 . . . . Weapon . | . . . . . . . . . . . . . . . . . . . . . . . Parts Attached 210 | 7 4 8 1 1 30 17 18 6 10 5 . . 31 2 7 1 3 20 18 1 5 15 Power 13 | 1 . 1 . . 2 . 2 1 2 . . . 1 . . . . 1 . 1 1 . Engine 6 | 1 . 1 . . 2 . 2 . . . . . . . . . . . . . . . Core 4 | . . . . . . . . 1 2 . . . . . . . . 1 . . . . Reactor 3 | . . . . . . . . . . . . . 1 . . . . . . 1 1 . Propulsion 56 | 2 2 4 . . 10 4 5 1 2 2 . . 8 . 2 . . 4 4 . 1 5 Treads 15 | . 1 2 . . 3 . 4 1 2 2 . . . . . . . . . . . . Leg 29 | . . . . . 5 4 1 . . . . . 8 . 2 . . 4 4 . 1 . Wheel 12 | 2 1 2 . . 2 . . . . . . . . . . . . . . . . 5 Hover . | . . . . . . . . . . . . . . . . . . . . . . . Flight . | . . . . . . . . . . . . . . . . . . . . . . . Utility 71 | 2 2 1 1 . 7 4 4 1 4 3 . . 10 2 5 . . 10 8 . 3 4 Device 19 | . . . 1 . 2 2 1 . . . . . 2 1 4 . . 3 3 . . . Storage 5 | 2 1 1 . . . . . . . . . . . . . . . . . . 1 . Processor 8 | . . . . . 1 . 1 . 1 1 . . 1 . . . . 1 . . . 2 Hackware 12 | . . . . . 1 . . . 1 1 . . 4 . . . . 2 2 . 1 . Protection 27 | . 1 . . . 3 2 2 1 2 1 . . 3 1 1 . . 4 3 . 1 2 Artifact . | . . . . . . . . . . . . . . . . . . . . . . . Weapon 70 | 2 . 2 . 1 11 9 7 3 2 . . . 12 . . 1 3 5 6 . . 6 Energy Gun 16 | . . 1 . . 5 1 3 1 1 . . . 3 . . . . 1 . . . . Energy Cannon 15 | . . . . . 2 2 . . . . . . 6 . . . 2 1 2 . . . Ballistic Gun 18 | 2 . 1 . . 1 3 . . 1 . . . 2 . . . . 2 1 . . 5 Ballistic Cannon 1 | . . . . . . . . . . . . . . . . . . . . . . 1 Launcher 9 | . . . . 1 2 2 1 2 . . . . . . . . . . 1 . . . Special Weapon 4 | . . . . . . 1 . . . . . . . . . . . 1 2 . . . Impact Weapon 2 | . . . . . 1 . 1 . . . . . . . . . . . . . . . Slashing Weapon 5 | . . . . . . . 2 . . . . . 1 . . 1 1 . . . . . Piercing Weapon . | . . . . . . . . . . . . . . . . . . . . . . . Special Melee Weapon . | . . . . . . . . . . . . . . . . . . . . . . . Unidentified Prototypes 9 | . . . 1 . . . 3 . . . . . 3 . . . . . . . 1 1 Corrupted Parts 2 | . . . . . 1 . . . . . . . . . . . . . . . . 1 System Corruption 11 | . . . . . 1 . . . . . . . . . . . . . . . . 10 Parts Lost 69 | . 2 5 . . 7 13 1 3 6 . . . 4 . 2 . . 4 2 1 15 4 Power 7 | . . 1 . . 1 1 . 1 1 . . . . . . . . . . 1 1 . Propulsion 27 | . 1 2 . . 4 4 1 1 3 . . . . . 1 . . 2 1 . 5 2 Utility 18 | . 1 . . . . 3 . 1 1 . . . 3 . 1 . . . 1 . 7 . Weapon 17 | . . 2 . . 2 5 . . 1 . . . 1 . . . . 2 . . 2 2 Highest Loss Streak 15 | . 1 3 . . 4 11 1 3 2 . . . 1 . 2 . . 2 2 1 15 3 Average Slot Usage (%) 90 | . 94 94 98 85 95 82 95 100 99 90 84 84 88 99 96 86 92 94 97 100 34 61 Engine 3 | . 14 13 14 14 7 3 6 5 . . . . . . . . . . . . . . Core 1 | . . . . . . . . 3 7 7 7 7 4 . . . . 2 5 1 . . Reactor 1 | . . . . . . . . . . . . . 1 6 6 6 6 2 . 3 5 5 Treads 7 | . . 10 . . 8 . 21 36 30 22 15 15 8 . . . . . . . . . Leg 13 | . . . . . 18 24 14 . . . . . 8 26 26 26 26 28 27 29 8 3 Wheel 4 | . 27 11 28 28 7 . . . . . . . . . . . . . . . . 8 Device 3 | . . . 5 . 3 5 6 9 7 4 . . 2 12 5 6 6 6 1 . . . Storage 9 | . 17 28 20 14 9 9 9 9 7 7 7 7 6 6 6 6 6 5 5 5 5 5 Processor 4 | . . . . . 9 2 . . 6 11 15 15 8 6 6 6 6 5 5 5 . 3 Hackware 14 | . . . . . 8 9 9 9 14 10 15 15 25 26 23 20 20 23 29 29 8 11 Protection 5 | . 5 . . . 5 9 9 9 7 9 7 7 7 . 6 6 6 4 8 11 1 10 Energy Gun 4 | . . 7 14 14 5 3 13 9 7 7 7 7 2 . . . . . . . . . Energy Cannon 4 | . . . . . 6 9 2 . . . . . 6 13 13 . 12 6 4 5 . . Ballistic Gun 5 | . 28 20 14 1 4 3 . . 4 7 7 7 3 . . . . 2 2 . . 10 Naked Turns . | . . . . . . . . . . . . . . . . . . . . . . . Heaviest Build 129 | 19 92 90 90 92 97 98 102 102 102 107 101 101 115 115 129 111 122 114 122 120 120 117 Greatest Support 140 | 20 20 40 20 20 62 60 112 112 112 140 140 140 140 72 72 72 72 90 93 90 90 58 Greatest Overweight (x) 11 | 3 4 8 4 4 9 5 3 . 1 1 . . 2 1 1 1 1 1 2 1 6 11 Average Overweight (x) 1 | . 3 6 4 4 3 1 . . . . . . . 1 1 1 1 1 1 1 4 2 Largest Inventory Capacity 25 | 8 25 25 25 25 25 25 25 25 25 25 25 25 25 25 25 25 25 25 25 25 25 25 Average Capacity 24 | 7 20 25 25 25 25 25 25 25 25 25 25 25 25 25 25 25 25 25 25 25 25 25 Most Carried 25 | 6 18 20 23 25 25 25 25 25 25 25 25 25 25 25 25 25 25 25 25 25 25 25 Average Carried 22 | 4 10 18 20 24 23 21 23 24 24 24 24 24 24 24 24 25 24 23 24 24 23 22 Final Capacity 25 | 8 25 25 25 25 25 25 25 25 25 25 25 25 25 25 25 25 25 25 25 25 25 25 Final Carried 25 | 6 18 20 23 25 25 21 25 24 25 25 25 25 25 25 24 25 24 25 24 25 22 24 Class Distribution -------------------- 36% | Hacker-Mutant 31% | Mutant 16% | Scavenger-Mutant 8% | Wizard-Mutant 5% | Scavenger-Skirmisher Dominant Class ---------------- Mutant | -10/Materials Mutant | -10/Mines Mutant | -10/Exiles Mutant | -9/Mines Mutant | -8/Materials Mutant | -8/Garrison Scavenger-Mutant | -8/Materials Mutant | -8/Garrison Hacker-Mutant | -7/Factory Scavenger-Mutant | -7/Waste Scavenger-Mutant | -7/Factory Scavenger-Mutant | -7/Garrison Hacker-Mutant | -6/Factory Hacker-Mutant | -6/Lower Caves Hacker-Mutant | -6/Lower Caves Hacker-Mutant | -6/Data Miner Hacker-Mutant | -5/Proximity Caves Hacker-Mutant | -5/Factory Wizard-Mutant | -5/Extension Wizard-Mutant | -5/Cetus Mutant | -5/Archives Scavenger-Mutant | -5/Hub_04(d) Resources | -11 -10 -10 -10 -9 -8 -8 -8 -8 -7 -7 -7 -7 -6 -6 -6 -6 -5 -5 -5 -5 -5 -5 ----------- Run | Scr Mat Min Exi Min Mat Gar Mat Gar Fac Was Fac Gar Fac Low Low Dat Pro Fac Ext Cet Arc Hub Matter Collected 4892 | 272 415 157 90 93 480 294 165 96 357 141 . 41 576 107 143 . 94 325 375 95 47 529 Remotely . | . . . . . . . . . . . . . . . . . . . . . . . Salvage Created 8953 | 82 598 229 . 56 1127 406 605 426 740 287 . . 1453 55 255 . 114 739 332 657 . 792 Parts 481 | 2 54 22 . 16 84 19 23 17 39 2 . . 64 6 8 . 6 42 7 21 . 49 Haulers Intercepted 7 | . 1 . . . 2 . 2 . . . . . 2 . . . . . . . . . Recyclers Shooed 7 | . 1 . . . 1 . . . 1 . . . . . . . . 1 1 . . 2 Parts Field Recycled . | . . . . . . . . . . . . . . . . . . . . . . . Retrieved Matter . | . . . . . . . . . . . . . . . . . . . . . . . Parts Self-Destructed 33 | . . . . . . . . . . . . . . 6 8 . 19 . . . . . Prevented . | . . . . . . . . . . . . . . . . . . . . . . . Kills | -11 -10 -10 -10 -9 -8 -8 -8 -8 -7 -7 -7 -7 -6 -6 -6 -6 -5 -5 -5 -5 -5 -5 ------- Run | Scr Mat Min Exi Min Mat Gar Mat Gar Fac Was Fac Gar Fac Low Low Dat Pro Fac Ext Cet Arc Hub Combat Hostiles Destroyed 138 | . 14 5 . 4 16 9 7 8 13 . . . 21 1 6 . 3 9 2 12 . 8 Guns 72 | . 14 5 . 1 5 3 6 3 13 . . . 11 . . . . 3 . . . 8 Cannons 36 | . . . . . 5 4 . . . . . . 9 1 6 . 3 5 2 1 . . AOE 24 | . . . . 3 6 2 . 5 . . . . . . . . . . . 8 . . Classes Destroyed 14 | 1 5 3 . . 2 1 . . 1 . . . . . 1 . . . . . . . Worker 12 | . . 1 . 1 1 . 3 . 1 . . . 1 . . . . . . . . 4 Builder 6 | . . 3 . . 1 . . . . . . . . . . . . . . . . 2 Tunneler 4 | . . 1 . 2 1 . . . . . . . . . . . . . . . . . Hauler 7 | . 1 . . . 2 . 2 . . . . . 2 . . . . . . . . . Recycler 10 | 1 2 . . . 1 . 1 . 2 . . . . . . . . 1 1 . . 1 Operator 7 | . 1 . . . 2 . 3 . . . . . 1 . . . . . . . . . Watcher 16 | . 3 . . . 5 . 1 . 2 . . . 4 . . . . . . 1 . . Swarmer 43 | . 9 3 . 4 . . 2 . 7 . . . 4 . 3 . 2 . . 9 . . Grunt 53 | . 5 2 . . 11 8 4 5 1 . . . 13 . 2 . . . . . . 2 Brawler 4 | . . . . . 1 . . 3 . . . . . . . . . . . . . . Duelist 1 | . . . . . . . . . . . . . . . 1 . . . . . . . Sentry 17 | . . . . . 4 1 1 . 2 . . . 2 . . . . 3 2 . . 2 Hunter 7 | . . . . . . 1 . . . . . . . 1 . . 1 2 . . . 2 Programmer 11 | . . . . . . . . . 3 . . . 2 . . . . 4 . . . 2 Cetus Guard 3 | . . . . . . . . . . . . . . . . . . . . 3 . . Thug 3 | . . . . . . . . . . . . . . . . . . . . 3 . . Butcher 1 | . . . . . . . . . . . . . . . . . . . . 1 . . Best Kill Streak 7 | 1 5 3 . 5 4 4 3 7 5 . . . 4 1 3 . 2 2 1 6 . 5 Combat Bots Only 7 | . 3 3 . 4 4 4 3 7 4 . . . 4 1 3 . 2 2 1 6 . 2 Max Kills in Single Turn 5 | 1 1 1 . 3 3 1 1 3 1 . . . 1 1 1 . 1 1 1 5 . 4 Gunslinging . | . . . . . . . . . . . . . . . . . . . . . . . Exploded 3 | . . . . 3 3 1 . 3 . . . . . . . . . . . 3 . . Melee . | . . . . . . . . . . . . . . . . . . . . . . . Uniques/NPCs Destroyed . | . . . . . . . . . . . . . . . . . . . . . . . Combat | -11 -10 -10 -10 -9 -8 -8 -8 -8 -7 -7 -7 -7 -6 -6 -6 -6 -5 -5 -5 -5 -5 -5 -------- Run | Scr Mat Min Exi Min Mat Gar Mat Gar Fac Was Fac Gar Fac Low Low Dat Pro Fac Ext Cet Arc Hub Damage Taken 14515 | . 425 300 . 123 909 1895 551 741 1348 . . 30 1534 373 430 . 272 1422 428 360 1535 1839 Core 1991 | . 50 58 . 77 141 245 34 52 224 . . . 64 45 . . . 239 83 28 481 170 Absorbed by Shields 297 | . . . . . . . . . . . . . . . . . . . 181 116 . . Core Remaining (%) 59 | 100 . . . 26 . . . 14 . . . 68 . . . . 87 . . . . . Volleys Fired 655 | 2 69 21 . 5 76 53 60 15 66 16 . 6 81 2 18 . 12 60 31 13 . 49 Largest 2 | 2 2 2 . 2 2 2 2 2 2 2 . 2 2 2 2 . 2 2 2 2 . 2 Hottest 150 | 40 40 85 . 98 125 125 134 124 97 97 . 97 120 120 120 . 60 150 90 105 . 86 Shots Fired 1196 | 4 138 41 . 9 142 81 105 29 130 32 . 8 156 4 33 . 26 99 43 23 . 93 Gun 831 | 4 138 41 . 5 85 29 98 22 130 32 . 8 102 . . . . 35 11 . . 91 Cannon 320 | . . . . . 52 43 7 . . . . . 54 4 33 . 26 62 25 12 . 2 Launcher 38 | . . . . 4 5 7 . 7 . . . . . . . . . . 4 11 . . Special 7 | . . . . . . 2 . . . . . . . . . . . 2 3 . . . Kinetic 508 | 4 138 29 . 1 23 27 . . 66 16 . 2 66 . . . . 32 11 . . 93 Thermal 575 | . . 12 . 4 65 45 105 22 64 16 . 6 90 4 33 . 26 62 21 . . . Explosive 17 | . . . . 4 5 7 . 1 . . . . . . . . . . . . . . Electromagnetic 89 | . . . . . 49 . . 6 . . . . . . . . . 3 8 23 . . Robot Hit Streak 25 | 3 13 5 . 3 10 10 16 17 16 25 . 1 8 3 14 . 4 13 16 4 . 11 Robot Miss Streak 6 | . 4 3 . 1 6 4 3 3 4 1 . 3 4 1 5 . 3 6 1 3 . 4 Penetration Max 1 | . . . . . . 1 . . 1 . . . 1 . . . . . . . . 1 Secondary Targets 10 | . 1 3 . . . 1 1 1 2 . . . 1 . . . . . . . . . Max Gunslinging Chain 1 | . 1 1 . . . 1 1 1 1 . . . 1 . . . . . . . . . Shots Hit Robots 737 | 3 73 24 . 5 91 52 67 21 81 30 . 1 100 3 22 . 10 52 28 13 . 61 Core Hits 349 | 2 32 13 . 7 53 21 23 16 30 4 . 1 42 2 8 . 6 15 15 29 . 30 Critical Kills 8 | . 1 . . . 1 . . . . . . . 2 . . . . . 1 . . 3 Critical Parts Destroyed 4 | . 1 . . . . . . . . . . . . . . . . . . . . 3 Critical Strikes 32 | . 2 . . . 1 . 6 1 8 1 . . 4 . . . . 1 1 . . 7 Burn 18 | . . . . . . . 6 1 8 1 . . 2 . . . . . . . . . Meltdown 3 | . . . . . 1 . . . . . . . 1 . . . . . 1 . . . Destroy 11 | . 2 . . . . . . . . . . . 1 . . . . 1 . . . 7 Melee Attacks 11 | . . . . . 1 . 8 . . . . . 2 . . . . . . . . . Impact 4 | . . . . . 1 . 3 . . . . . . . . . . . . . . . Slashing 7 | . . . . . . . 5 . . . . . 2 . . . . . . . . . Piercing . | . . . . . . . . . . . . . . . . . . . . . . . Sneak Attacks . | . . . . . . . . . . . . . . . . . . . . . . . Combat Hostiles . | . . . . . . . . . . . . . . . . . . . . . . . Follow-up Attacks . | . . . . . . . . . . . . . . . . . . . . . . . Damage Inflicted 20373 | 37 949 300 . 240 2048 1508 1184 930 1768 602 . 37 2920 108 836 . 258 2116 1256 1749 . 1527 Guns 10126 | 37 949 300 . 41 698 315 1096 335 1768 602 . 37 1782 . . . . 462 237 . . 1467 Cannons 5873 | . . . . . 634 527 88 . . . . . 1138 108 836 . 258 1654 418 152 . 60 Explosions 4374 | . . . . 199 716 666 . 595 . . . . . . . . . . 601 1597 . . Melee . | . . . . . . . . . . . . . . . . . . . . . . . Ramming . | . . . . . . . . . . . . . . . . . . . . . . . Kinetic 6319 | 37 949 164 . 10 226 315 . . 860 301 . . 1257 . . . . 436 237 . . 1527 Thermal 10439 | . . 136 . 31 848 527 1184 335 908 301 . 37 1663 108 836 . 258 1654 640 973 . . Explosive 1603 | . . . . 199 610 666 . 128 . . . . . . . . . . . . . . Electromagnetic 2012 | . . . . . 364 . . 467 . . . . . . . . . 26 379 776 . . Impact . | . . . . . . . . . . . . . . . . . . . . . . . Slashing . | . . . . . . . . . . . . . . . . . . . . . . . Piercing . | . . . . . . . . . . . . . . . . . . . . . . . Highest Corruption 20 | . . . . . 1 1 1 6 3 3 3 3 7 7 7 7 7 8 8 8 8 20 Average Corruption 5 | . . . . . 1 1 1 3 2 3 3 3 6 7 7 7 7 6 8 8 8 18 Corruption Purged . | . . . . . . . . . . . . . . . . . . . . . . . Effects 350 | . . . . . 5 . 6 8 4 7 4 10 50 20 31 3 27 41 52 16 25 41 Message Errors 86 | . . . . . 2 . 3 4 2 . 2 4 9 9 6 2 6 6 12 3 5 11 Matter Fused 84 | . . . . . . . . 1 1 4 1 4 12 5 9 1 6 7 12 4 10 7 Heat Flow Errors 47 | . . . . . . . . 1 . 1 1 1 5 1 5 . 5 10 5 4 4 4 Energy Discharges 41 | . . . . . 1 . 3 1 1 1 . . 7 3 5 . 4 6 3 1 1 4 Parts Rejected 3 | . . . . . . . . . . . . . . . . . . 1 1 . . 1 Data Loss (minor) 47 | . . . . . 2 . . 1 . 1 . 1 7 1 5 . 2 6 10 . 4 7 Data Loss (major) 16 | . . . . . . . . . . . . . 4 1 . . 2 2 3 1 1 2 Misfires 15 | . . . . . . . . . . . . . 5 . . . 2 1 5 2 . . Weapon Failures 11 | . . . . . . . . . . . . . 1 . 1 . . 2 1 1 . 5 Overload Shots 61 | . . . . . . . . . . . . . 12 1 10 . . 38 . . . . Effects 3 | . . . . . . . . . . . . . 1 . 1 . . 1 . . . . Energy Bleed 1 | . . . . . . . . . . . . . . . 1 . . . . . . . Heat Surge 1 | . . . . . . . . . . . . . 1 . . . . . . . . . Short Circuit 1 | . . . . . . . . . . . . . . . . . . 1 . . . . Overflow Damage 330 | . . . . . 24 16 . . . . . . 48 . 42 . . 136 58 6 . . Projectiles 254 | . . . . . 10 14 . . . . . . 48 . 42 . . 136 4 . . . Explosions 76 | . . . . . 14 2 . . . . . . . . . . . . 54 6 . . Melee . | . . . . . . . . . . . . . . . . . . . . . . . Knockbacks 2 | . . . . . . . . . . . . . . . . . . . . . . 2 Impact . | . . . . . . . . . . . . . . . . . . . . . . . Kinetic 2 | . . . . . . . . . . . . . . . . . . . . . . 2 Secondary . | . . . . . . . . . . . . . . . . . . . . . . . Self-Inflicted Damage 215 | . . . . 88 42 . . 22 . . . . . . . . . . 38 25 . . Shots 9 | . . . . 2 2 . . 2 . . . . . . . . . . 2 1 . . Rammed . | . . . . . . . . . . . . . . . . . . . . . . . Targets Rammed . | . . . . . . . . . . . . . . . . . . . . . . . Kicked . | . . . . . . . . . . . . . . . . . . . . . . . Crushed . | . . . . . . . . . . . . . . . . . . . . . . . Highest Temperature 442 | . 6 140 . 72 238 407 399 154 8 355 133 118 442 151 284 . 234 258 203 268 235 254 Average Temperature 96 | . 3 45 . 31 56 100 106 68 5 170 71 30 156 97 131 . 102 79 72 55 113 156 Received Heat Transfer 3985 | . 102 84 . . 495 1125 315 378 147 . . 18 498 36 180 . 36 72 82 35 15 367 Effects 21 | . . . . . 3 5 2 . . 1 . . 7 . 2 . . 1 . . . . Shutdowns 5 | . . . . . . 1 1 . . 1 . . 2 . . . . . . . . . Energy Bleed 6 | . . . . . . 1 . . . . . . 2 . 2 . . 1 . . . . Interference 8 | . . . . . 3 2 1 . . . . . 2 . . . . . . . . . Damage (minor) 2 | . . . . . . 1 . . . . . . 1 . . . . . . . . . Siege Activations . | . . . . . . . . . . . . . . . . . . . . . . . Robots Corrupted 3 | . . . . . . . . . . . . . . . . . . . . 3 . . Combat Hostiles 3 | . . . . . . . . . . . . . . . . . . . . 3 . . Parts Fried 6 | . . . . . 1 . . 1 . . . . . . . . . . 3 1 . . Impact Corruptions . | . . . . . . . . . . . . . . . . . . . . . . . Robots Melted 5 | . . . . . 1 . 1 . . . . . 1 . . . . 1 1 . . . Combat Hostiles 3 | . . . . . . . 1 . . . . . 1 . . . . 1 . . . . Parts Melted 44 | . . . . . 6 1 9 3 6 . . . 10 . 4 . . 3 2 . . . Heat Transferred 16705 | . . 333 . 74 1741 1110 2960 814 2331 666 . 74 2261 124 905 . 370 1483 759 700 . . Parts Sabotaged . | . . . . . . . . . . . . . . . . . . . . . . . Parts Stolen . | . . . . . . . . . . . . . . . . . . . . . . . Parts Stripped . | . . . . . . . . . . . . . . . . . . . . . . . Power Chain Reactions 7 | . . . . . 1 . . . . . . . . . . . . . 1 5 . . Missiles Intercepted . | . . . . . . . . . . . . . . . . . . . . . . . Alert | -11 -10 -10 -10 -9 -8 -8 -8 -8 -7 -7 -7 -7 -6 -6 -6 -6 -5 -5 -5 -5 -5 -5 ------- Run | Scr Mat Min Exi Min Mat Gar Mat Gar Fac Was Fac Gar Fac Low Low Dat Pro Fac Ext Cet Arc Hub Peak Influence 1261 | 5 225 50 . 105 288 380 243 216 1261 434 149 646 553 . . . . 169 120 723 628 229 Initial 434 | . 3 11 . . . 25 185 10 113 434 149 104 338 . . . . . 26 20 209 23 Average 158 | . 109 19 . 74 132 235 110 100 249 360 149 470 246 . . . . 61 44 364 310 105 Maximum Alert Level 4 | . 1 . . . 1 1 1 1 4 2 . 2 2 . . . . . . 3 2 1 Low Security (%) 68 | 100 86 100 . 100 85 46 72 62 72 . 100 15 27 . . . . 100 100 20 . 96 Level 1 22 | . 13 . . . 14 53 27 37 16 34 . 11 68 . . . . . . 43 57 3 Level 2 7 | . . . . . . . . . 2 65 . 73 3 . . . . . . 31 42 . Level 3 . | . . . . . . . . . . . . . . . . . . . . 3 . . Level 4 . | . . . . . . . . . 7 . . . . . . . . . . . . . Level 5 . | . . . . . . . . . . . . . . . . . . . . . . . High Security . | . . . . . . . . . . . . . . . . . . . . . . . Max Security . | . . . . . . . . . . . . . . . . . . . . . . . Squads Dispatched 32 | . 3 . . . 5 . 2 . 4 . . . 8 . . . . 5 . . . 5 Investigation 6 | . 2 . . . 1 . . . . . . . 1 . . . . 2 . . . . Extermination 8 | . . . . . . . . . 2 . . . 2 . . . . 2 . . . 2 Reinforcement 16 | . 1 . . . 4 . 2 . 2 . . . 5 . . . . . . . . 2 Assault . | . . . . . . . . . . . . . . . . . . . . . . . Garrison 2 | . . . . . . . . . . . . . . . . . . 1 . . . 1 Intercept . | . . . . . . . . . . . . . . . . . . . . . . . Construction Impeded 2 | . . . . . . . . . . . . . 2 . . . . . . . . . Haulers Reinforced 3 | . . . . . . . . . . . . . 2 . . . . . . . . 1 Cargo Convoy Interrupts 1 | . . . . . . . . . 1 . . . . . . . . . . . . . Stealth | -11 -10 -10 -10 -9 -8 -8 -8 -8 -7 -7 -7 -7 -6 -6 -6 -6 -5 -5 -5 -5 -5 -5 --------- Run | Scr Mat Min Exi Min Mat Gar Mat Gar Fac Was Fac Gar Fac Low Low Dat Pro Fac Ext Cet Arc Hub Distress Signals 14 | . 1 . . . 1 . 1 . 4 . . . 2 . . . . 1 1 2 . 1 Communications Jammed 5 | . . . . . . . . . . . . . . . . . . 5 . . . . Distress Signals 5 | . . . . . . . . . . . . . . . . . . 5 . . . . Times Spotted 286 | . 22 5 . 4 32 16 15 12 22 1 . 11 34 3 7 . 11 17 14 24 18 18 Peak Tracking Total 16 | . 6 3 . 4 5 8 5 8 5 1 . 3 6 1 3 . 5 3 5 9 16 7 Tactical Retreats 16 | . . . . . . 3 2 2 2 . . . 2 2 1 . 1 . . . . 1 Traps | -11 -10 -10 -10 -9 -8 -8 -8 -8 -7 -7 -7 -7 -6 -6 -6 -6 -5 -5 -5 -5 -5 -5 ------- Run | Scr Mat Min Exi Min Mat Gar Mat Gar Fac Was Fac Gar Fac Low Low Dat Pro Fac Ext Cet Arc Hub Traps Triggered 15 | . 2 . . . 1 4 . 1 1 . . . 2 . . . . . 4 . . . Indirectly 2 | . . . . . . . . 1 . . . . . . . . . . 1 . . . Trap Hack Attempts . | . . . . . . . . . . . . . . . . . . . . . . . Triggered . | . . . . . . . . . . . . . . . . . . . . . . . Disarmed . | . . . . . . . . . . . . . . . . . . . . . . . Reprogrammed . | . . . . . . . . . . . . . . . . . . . . . . . Reused . | . . . . . . . . . . . . . . . . . . . . . . . Traps Extracted . | . . . . . . . . . . . . . . . . . . . . . . . Installed . | . . . . . . . . . . . . . . . . . . . . . . . Triggered 2 | . . . . . . . . 1 1 . . . . . . . . . . . . . Machines | -11 -10 -10 -10 -9 -8 -8 -8 -8 -7 -7 -7 -7 -6 -6 -6 -6 -5 -5 -5 -5 -5 -5 ---------- Run | Scr Mat Min Exi Min Mat Gar Mat Gar Fac Was Fac Gar Fac Low Low Dat Pro Fac Ext Cet Arc Hub Machines Disabled 34 | . . . . . 2 . 4 . 16 . . 2 2 . . . . 1 1 2 1 3 Max in Single Turn 1 | . . . . . 1 . 1 . 1 . . 1 1 . . . . 1 . 1 . 1 Garrison Access 1 | . . . . . . . . . . . . . . . . . . 1 . . . . Garrison Relay 2 | . . . . . . . . . . . . 2 . . . . . . . . . . Machines Sabotaged . | . . . . . . . . . . . . . . . . . . . . . . . Garrisons Compromised 1 | . . . . . . . . . 1 . . . . . . . . . . . . . Overloaded Fab Kills . | . . . . . . . . . . . . . . . . . . . . . . . Fab Network Shutdowns . | . . . . . . . . . . . . . . . . . . . . . . . Hacking | -11 -10 -10 -10 -9 -8 -8 -8 -8 -7 -7 -7 -7 -6 -6 -6 -6 -5 -5 -5 -5 -5 -5 --------- Run | Scr Mat Min Exi Min Mat Gar Mat Gar Fac Was Fac Gar Fac Low Low Dat Pro Fac Ext Cet Arc Hub Machines Accessed 46 | . 2 . 1 . 4 . 2 . . . 1 . 14 . 1 4 . 6 6 2 1 2 Terminals 26 | . 2 . . . 3 . . . . . . . 9 . . . . 2 6 2 . 2 Fabricators 4 | . . . . . . . . . . . . . 3 . . . . 1 . . . . Repair Stations 2 | . . . . . . . . . . . . . . . . . . 2 . . . . Recycling Units . | . . . . . . . . . . . . . . . . . . . . . . . Scanalyzers 3 | . . . . . . . 1 . . . . . 2 . . . . . . . . . Garrison Access 4 | . . . . . 1 . 1 . . . 1 . . . . . . 1 . . . . Total Hacks 176 | . 6 . 1 . 9 . 4 . . . 1 . 45 . 1 27 . 22 26 6 25 3 Successful 131 | . 3 . 1 . 4 . 4 . . . 1 . 33 . 1 27 . 11 14 5 25 2 Failed 45 | . 3 . . . 5 . . . . . . . 12 . . . . 11 12 1 . 1 Catastrophic 8 | . 2 . . . 3 . . . . . . . 1 . . . . 1 . . . 1 Database Lockouts . | . . . . . . . . . . . . . . . . . . . . . . . Manual 37 | . 3 . 1 . 6 . . . . . . . 10 . . . . 6 8 1 . 2 Terminals 91 | . 6 . . . 8 . . . . . . . 33 . . . . 9 26 6 . 3 Fabricators 11 | . . . . . . . . . . . . . 6 . . . . 5 . . . . Repair Stations 7 | . . . . . . . . . . . . . . . . . . 7 . . . . Recycling Units . | . . . . . . . . . . . . . . . . . . . . . . . Scanalyzers 8 | . . . . . . . 2 . . . . . 6 . . . . . . . . . Garrison Access 5 | . . . . . 1 . 2 . . . 1 . . . . . . 1 . . . . Terminal Hacks 100 | . 2 . 1 . 2 . . . . . . . 19 . 1 27 . 2 14 5 25 2 Record 42 | . . . . . . . . . . . . . . . . 11 . 1 1 4 25 . Part Schematic 15 | . . . . . . . . . . . . . 4 . . 6 . . 5 . . . Robot Schematic 7 | . . . . . . . . . . . . . . . . 7 . . . . . . Robot Analysis 3 | . . . . . 1 . . . . . . . 2 . . . . . . . . . Prototype ID Bank 9 | . 1 . . . 1 . . . . . . . 1 . . 3 . . 2 . . 1 Open Door 2 | . . . . . . . . . . . . . . . 1 . . . . 1 . . Level Access Points 1 | . . . . . . . . . . . . . . . . . . . . . . 1 Branch Access Points 3 | . 1 . . . . . . . . . . . 1 . . . . . 1 . . . Terminal Index 2 | . . . . . . . . . . . . . 1 . . . . 1 . . . . Fabricator Index 1 | . . . . . . . . . . . . . 1 . . . . . . . . . Unreport Threat 4 | . . . . . . . . . . . . . 3 . . . . . 1 . . . Locate Traps 2 | . . . . . . . . . . . . . 1 . . . . . 1 . . . Hauler Manifests 1 | . . . . . . . . . . . . . 1 . . . . . . . . . Registered Components 1 | . . . . . . . . . . . . . 1 . . . . . . . . . Registered Prototypes 2 | . . . . . . . . . . . . . 1 . . . . . 1 . . . Zone Layout 4 | . . . . . . . . . . . . . 2 . . . . . 2 . . . EX-Prototype ID Bank 1 | . . . 1 . . . . . . . . . . . . . . . . . . . Fabricator Hacks 9 | . . . . . . . . . . . . . 6 . . . . 3 . . . . Network Status 2 | . . . . . . . . . . . . . 1 . . . . 1 . . . . Load Schematic 3 | . . . . . . . . . . . . . 2 . . . . 1 . . . . Build 4 | . . . . . . . . . . . . . 3 . . . . 1 . . . . Repair Station Hacks 4 | . . . . . . . . . . . . . . . . . . 4 . . . . Scan Component 2 | . . . . . . . . . . . . . . . . . . 2 . . . . Repair 2 | . . . . . . . . . . . . . . . . . . 2 . . . . Recycling Unit Hacks . | . . . . . . . . . . . . . . . . . . . . . . . Scanalyzer 8 | . . . . . . . 2 . . . . . 6 . . . . . . . . . Insert Component 4 | . . . . . . . 1 . . . . . 3 . . . . . . . . . Analyze 4 | . . . . . . . 1 . . . . . 3 . . . . . . . . . Garrison Access Hacks 5 | . . . . . 1 . 2 . . . 1 . . . . . . 1 . . . . Unlock Access 3 | . . . . . 1 . 1 . . . 1 . . . . . . . . . . . Seal Access 1 | . . . . . . . . . . . . . . . . . . 1 . . . . Coupler Status 1 | . . . . . . . 1 . . . . . . . . . . . . . . . Unauthorized Hacks 5 | . 1 . . . 1 . . . . . . . 2 . . . . 1 . . . . Terminals 4 | . 1 . . . 1 . . . . . . . 2 . . . . . . . . . Botnet 4 | . 1 . . . 1 . . . . . . . 2 . . . . . . . . . Fabricators 1 | . . . . . . . . . . . . . . . . . . 1 . . . . Report 1 | . . . . . . . . . . . . . . . . . . 1 . . . . Repair Stations . | . . . . . . . . . . . . . . . . . . . . . . . Recycling Units . | . . . . . . . . . . . . . . . . . . . . . . . Scanalyzers . | . . . . . . . . . . . . . . . . . . . . . . . Garrison Access . | . . . . . . . . . . . . . . . . . . . . . . . Data Cores Recovered 1 | . . . . . . . . . . . . . 1 . . . . . . . . . Used 1 | . . . . . . . . . . . . . 1 . . . . . . . . . Hacking Detections 29 | . 2 . . . 4 . 1 . . . . . 10 . . . . 5 4 1 . 2 Full Trace Events 5 | . 1 . . . 1 . . . . . . . 1 . . . . 2 . . . . Feedback Events . | . . . . . . . . . . . . . . . . . . . . . . . Feedback Blocked . | . . . . . . . . . . . . . . . . . . . . . . . Robot Schematics Acquired 7 | . . . . . . . . . . . . . . . . 7 . . . . . . Robots Built 2 | . . . . . . . . . . . . . . . . . . 2 . . . . Matter 318 | . . . . . . . . . . . . . . . . . . 318 . . . . Time 169 | . . . . . . . . . . . . . . . . . . 169 . . . . Total Robot Build Rating 12 | . . . . . . . . . . . . . . . . . . 12 . . . . Part Schematics Acquired 19 | . . . . . . . 1 . . . . . 7 . . 6 . . 5 . . . Parts Built 4 | . . . . . . . . . . . . . 4 . . . . . . . . . Matter 636 | . . . . . . . . . . . . . 636 . . . . . . . . . Time 190 | . . . . . . . . . . . . . 190 . . . . . . . . . Total Part Build Rating 26 | . . . . . . . . . . . . . 26 . . . . . . . . . Parts Repaired 2 | . . . . . . . . . . . . . . . . . . 2 . . . . Time 37 | . . . . . . . . . . . . . . . . . . 37 . . . . Parts Recycled . | . . . . . . . . . . . . . . . . . . . . . . . Recycled Matter . | . . . . . . . . . . . . . . . . . . . . . . . Retrieved Matter . | . . . . . . . . . . . . . . . . . . . . . . . Retrieved Components . | . . . . . . . . . . . . . . . . . . . . . . . Parts Scanalyzed 4 | . . . . . . . 1 . . . . . 3 . . . . . . . . . Part Schematics Acquired 4 | . . . . . . . 1 . . . . . 3 . . . . . . . . . Parts Damaged . | . . . . . . . . . . . . . . . . . . . . . . . Bothacking | -11 -10 -10 -10 -9 -8 -8 -8 -8 -7 -7 -7 -7 -6 -6 -6 -6 -5 -5 -5 -5 -5 -5 ------------ Run | Scr Mat Min Exi Min Mat Gar Mat Gar Fac Was Fac Gar Fac Low Low Dat Pro Fac Ext Cet Arc Hub Used RIF Installer 3 | . . . . . . 1 . 1 . . . 1 . . . . . . . . . . Alert ID Control 1 | . . . . . . . . 1 . . . . . . . . . . . . . . Program Shield 1 | . . . . . . . . . . . . 1 . . . . . . . . . . Robots Hacked . | . . . . . . . . . . . . . . . . . . . . . . . Non-combat . | . . . . . . . . . . . . . . . . . . . . . . . Combat . | . . . . . . . . . . . . . . . . . . . . . . . Robot Hacks Applied . | . . . . . . . . . . . . . . . . . . . . . . . Relay Couplers Released 13 | . . . . . . . . . 4 . . 6 . . . . . 3 . . . . Machine Destruction 9 | . . . . . . . . . . . . 6 . . . . . 3 . . . . Programmers 4 | . . . . . . . . . 4 . . . . . . . . . . . . . Robots Rewired 12 | . . . . . . . . . . . . . . . . . . . 12 . . . Allies Hacked 3 | . . . . . . . . . . . . . . . . . . 3 . . . . Hacks Repelled 2 | . . . . . . . . . 1 . . . . . . . . 1 . . . . Allies | -11 -10 -10 -10 -9 -8 -8 -8 -8 -7 -7 -7 -7 -6 -6 -6 -6 -5 -5 -5 -5 -5 -5 -------- Run | Scr Mat Min Exi Min Mat Gar Mat Gar Fac Was Fac Gar Fac Low Low Dat Pro Fac Ext Cet Arc Hub Total Allies 74 | . . . . 5 . 2 . . 18 20 . . . . . . 1 7 16 5 . . Largest Group 20 | . . . . 5 5 2 . . 17 20 17 14 9 . . . 1 4 9 9 4 . Highest-Rated Group 725 | . . . . 86 86 29 . . 725 578 502 416 275 . . . 95 216 423 624 366 . Highest-Rated Ally 156 | . . . . 31 31 16 . . 74 35 35 35 35 . . . 95 54 156 149 95 . Total Orders 1 | . . . . . . . . . . . . . . . . . . . . . 1 . FOLLOW 1 | . . . . . . . . . . . . . . . . . . . . . 1 . Ally Attacks 529 | . . . . . 37 19 . . 65 9 . 68 42 . . . 28 61 73 73 54 . Total Damage 14557 | . . . . . 391 243 . . 2731 162 . 1805 850 . . . 987 1129 2380 1779 2100 . Kills 94 | . . . . . 4 3 . . 19 1 . 15 7 . . . 6 4 14 11 10 . Allies Corrupted 2 | . . . . . . . . . . . . . 2 . . . . . . . . . Allies Melted 1 | . . . . . . . . . . . . . 1 . . . . . . . . . Field Lobotomies 5 | . . . . . . 2 . . . . . . . . . . . 2 1 . . . Intel | -11 -10 -10 -10 -9 -8 -8 -8 -8 -7 -7 -7 -7 -6 -6 -6 -6 -5 -5 -5 -5 -5 -5 ------- Run | Scr Mat Min Exi Min Mat Gar Mat Gar Fac Was Fac Gar Fac Low Low Dat Pro Fac Ext Cet Arc Hub Robot Analysis Total 3 | . . . . . 1 . . . . . . . 2 . . . . . . . . . Derelict Logs Recovered 9 | . . 2 . 1 . . . . . . . . . 2 3 . 1 . . . . . Drone Launches . | . . . . . . . . . . . . . . . . . . . . . . . Drone Recoveries . | . . . . . . . . . . . . . . . . . . . . . . . Exploration | -11 -10 -10 -10 -9 -8 -8 -8 -8 -7 -7 -7 -7 -6 -6 -6 -6 -5 -5 -5 -5 -5 -5 ------------- Run | Scr Mat Min Exi Min Mat Gar Mat Gar Fac Was Fac Gar Fac Low Low Dat Pro Fac Ext Cet Arc Hub Turns Passed 22001 | 97 919 1337 906 455 2379 692 1627 406 990 614 141 559 2266 722 1119 164 975 1831 1739 487 803 773 Spaces Moved 8919 | 93 517 372 644 299 684 173 341 163 458 327 70 328 1090 357 520 82 403 706 677 215 169 231 Core 4 | 4 . . . . . . . . . . . . . . . . . . . . . . Treads 2524 | . . 60 . . 112 . 244 163 458 327 70 328 762 . . . . . . . . . Legs 3836 | . . . . . 56 173 97 . . . . . 328 357 520 82 403 706 677 215 169 53 Wheels 2555 | 89 517 312 644 299 516 . . . . . . . . . . . . . . . . 178 Hover . | . . . . . . . . . . . . . . . . . . . . . . . Flight . | . . . . . . . . . . . . . . . . . . . . . . . Fastest Speed 50 | 50 80 140 140 140 125 200 160 160 160 160 160 160 160 200 200 200 200 200 200 200 200 100 Average Speed 185 | 80 126 223 140 140 173 281 173 160 160 167 160 160 172 200 200 200 200 200 209 200 474 237 Slowest Speed 680 | 200 140 360 140 140 600 520 460 160 260 260 160 160 280 200 200 200 200 200 280 200 600 680 Overloaded Moves . | . . . . . . . . . . . . . . . . . . . . . . . Propulsion Burnouts . | . . . . . . . . . . . . . . . . . . . . . . . Robots Hopped . | . . . . . . . . . . . . . . . . . . . . . . . Cave-ins Triggered 1 | . . . . . . . . . . . . . . . . . . 1 . . . . Exploration Rate (%) 51 | 4 61 62 91 71 54 38 35 41 13 96 2 45 32 53 61 71 53 13 86 79 96 24 Regions Visited 22 Branch Regions 11 Pre-discovered Areas 6 | . . 2 . 1 . . . . . . . . . . 2 1 . . . . . . Known Exits Taken 7 | . 1 . . . 1 . 1 . . . 1 . 1 . . . 1 . 1 . . . Unknown Exits Taken 10 | 1 . 1 1 1 . . . . . . . . . 1 1 1 . 1 . 1 1 . Scrap Searched 6 | . . . . 1 . . . . . . . . . 1 2 . 2 . . . . . Spaces Dug 46 | . . . . . 9 . 7 . . . . . 4 . . . 2 18 6 . . . Terrain Destroyed 262 | . . . . 36 33 43 7 6 2 2 . . 19 1 4 . 6 33 15 36 . 19 Melee 10 | . . . . . 1 . 7 . . . . . 2 . . . . . . . . . Projectile 97 | . . . . . . 3 . . 2 2 . . 17 1 4 . 6 33 10 . . 19 AOE 155 | . . . . 36 32 40 . 6 . . . . . . . . . . 5 36 . . Terrain Rammed . | . . . . . . . . . . . . . . . . . . . . . . . Walls Destroyed . | . . . . . . . . . . . . . . . . . . . . . . . Machines Disabled . | . . . . . . . . . . . . . . . . . . . . . . . Actions | -11 -10 -10 -10 -9 -8 -8 -8 -8 -7 -7 -7 -7 -6 -6 -6 -6 -5 -5 -5 -5 -5 -5 --------- Run | Scr Mat Min Exi Min Mat Gar Mat Gar Fac Was Fac Gar Fac Low Low Dat Pro Fac Ext Cet Arc Hub Total 13187 | 107 642 839 649 328 1731 294 1261 278 589 364 100 355 1323 362 565 83 548 1025 959 254 174 357 Wait 3028 | . 35 431 . 16 905 20 800 93 33 2 27 20 66 . 13 . 131 217 158 9 . 52 Move 8898 | 92 516 371 643 298 683 172 341 162 458 326 69 327 1089 356 519 81 402 704 676 214 168 231 Hop . | . . . . . . . . . . . . . . . . . . . . . . . Pick Up 150 | 6 14 6 3 5 21 7 13 2 14 4 2 1 17 1 3 . . 11 1 10 1 8 Fast Attach 90 | 7 2 2 . . 9 5 10 . 1 4 . . 19 . 2 . . 8 13 . . 8 Attach 75 | . 1 6 1 . 12 9 2 3 7 1 . . 6 1 3 . 1 10 1 1 4 6 Detach 17 | . 1 2 1 . 2 1 4 . . . . . 1 . 1 1 . 3 . . . . Swap 45 | . 1 . . 1 9 3 6 3 2 . . . 6 1 2 1 2 2 4 . 1 1 Drop 128 | . 3 . 1 3 13 4 17 . 8 11 2 1 31 1 4 . . 9 11 7 . 2 Fire 655 | 2 69 21 . 5 76 53 60 15 66 16 . 6 81 2 18 . 12 60 31 13 . 49 Melee 11 | . . . . . 1 . 8 . . . . . 2 . . . . . . . . . Ram . | . . . . . . . . . . . . . . . . . . . . . . . Kick . | . . . . . . . . . . . . . . . . . . . . . . . Crush . | . . . . . . . . . . . . . . . . . . . . . . . Escape Stasis 41 | . . . . . . 20 . . . . . . 5 . . . . 1 15 . . . Rewire 49 | . . . . . . . . . . . . . . . . . . . 49 . . . Trap . | . . . . . . . . . . . . . . . . . . . . . . . Miscellaneous . | . . . . . . . . . . . . . . . . . . . . . . . Route ------- -11/Scrapyard -10/Materials (discovered 3 exits: [*Mat] / *Min x2) -10/Mines -10/Exiles -9/Mines -8/Materials (discovered 3 exits: [*Fac x2] / Gar) -8/Garrison -8/Materials (discovered 2 exits: [*Fac] / Gar) -8/Garrison -7/Factory -7/Waste -7/Factory -7/Garrison -6/Factory (discovered 5 exits: *Fac x3 / *Low x2) -6/Lower Caves -6/Lower Caves (discovered 2 exits: *Fac / *Dat) -6/Data Miner -5/Proximity Caves -5/Factory (discovered 5 exits: *Fac x2 / Upp x2 / *Ext) -5/Extension (discovered 2 exits: *Fac / *Cet) -5/Cetus (discovered 2 exits: *Fac / *Arc) -5/Archives (discovered 3 exits: *Fac / *Hub x2) -5/Hub_04(d) (discovered 4 exits: Fac x4) History --------- Turn | Location | Event 12 | -11/Scrapyard | Discovered new exit (range 16) 98 | -11/Scrapyard | Entered Materials 138 | -10/Materials | Discovered new exit (range 15) 338 | -10/Materials | Build established: Mutant 440 | -10/Materials | Identified exit to Mines 841 | -10/Materials | Discovered new exit (range 15) 1017 | -10/Materials | Entered Mines 1058 | -10/Mines | Lost 3 parts (1p1n1w) 1075 | -10/Mines | Received a Rocket Launcher from a helpful Derelict 1203 | -10/Mines | Found a damaged Exp. Sensor Array with a note attached 1207 | -10/Mines | Found Prototype Device 1386 | -10/Mines | Learned location of Zion (-7) 1799 | -10/Mines | Deemed a non-threat by the Exiles lab entrance 1803 | -10/Mines | Discovered new exit (range 5) 2354 | -10/Mines | Entered Exiles 2387 | -10/Exiles | Met 8R-AWN 2409 | -10/Exiles | Met EX-HEX 2580 | -10/Exiles | Visited The Gauntlet 2724 | -10/Exiles | Met EX-DEC 2800 | -10/Exiles | Identified Exp. Sensor Array 2898 | -10/Exiles | Discovered new exit (range 12) 3068 | -10/Exiles | Met EX-BIN 3083 | -10/Exiles | Aligned with FarCom system 3085 | -10/Exiles | Given EX-Vault access code 3122 | -10/Exiles | Opened EX-Vault 3131 | -10/Exiles | Found Field Lobotomy Kit 3158 | -10/Exiles | Warned to stay clear of 0b10 Research branches 3260 | -10/Exiles | Left Exiles lab with Field Lobotomy Kit 3260 | -10/Exiles | Entered Mines 3328 | -9/Mines | Core integrity fell below 50% 3367 | -9/Mines | Learned location of Storage (-8) 3453 | -9/Mines | A weapon hastily lodged in a ceiling crevice suddenly fell to the ground 3666 | -9/Mines | Assisted by bots powering up and referring to "LRC-V3" 3684 | -9/Mines | Discovered new exit (range 5) 3700 | -9/Mines | Learned Materials garrison access intel 3715 | -9/Mines | Entered Materials 3715 | -8/Materials | Accompanied by 5 allies 3715 | -8/Materials | Evolved 4 slots: Propulsion x2, Utility x2 3716 | -8/Materials | Loaded intel: 1 garrison access location 3720 | -8/Materials | Led the pair of lost Derelicts to an unsafe place 4051 | -8/Materials | Build established: Scavenger-Skirmisher 4140 | -8/Materials | Discovered new exit (range 10) 4563 | -8/Materials | Lost 4 parts (1p1n2w) 4736 | -8/Materials | Discovered new exit (range 3) 5075 | -8/Materials | Identified exit to Garrison 5099 | -8/Materials | Build established: Mutant 6094 | -8/Materials | Entered Garrison 6264 | -8/Garrison | Triggered checkpoint 6385 | -8/Garrison | Core integrity fell below 50% 6437 | -8/Garrison | Lost 11 parts (1p3n3u4w) 6472 | -8/Garrison | Assimilated G-47 Trooper with FLK Orb 6475 | -8/Garrison | Assimilated G-47 Trooper with FLK Orb 6624 | -8/Garrison | Triggered checkpoint 6684 | -8/Garrison | Discovered new exit (range 12) 6756 | -8/Garrison | Installed Relay Interface Framework 6786 | -8/Garrison | Entered Materials 6816 | -8/Materials | Build established: Scavenger-Skirmisher 7116 | -8/Materials | Build established: Scavenger-Mutant 7685 | -8/Materials | Discovered new exit (range 10) 8047 | -8/Materials | Build established: Mutant 8413 | -8/Materials | Identified exit to Garrison 8413 | -8/Materials | Entered Garrison 8421 | -8/Garrison | Expanded RIF knowledge: Alert ID Control 8596 | -8/Garrison | Triggered checkpoint 8604 | -8/Garrison | Triggered checkpoint 8641 | -8/Garrison | Core integrity fell below 20% 8686 | -8/Garrison | Destroyed 7 combat bots 8691 | -8/Garrison | Lost 3 parts (1p1n1u) 8805 | -8/Garrison | Discovered new exit (range 9) 8819 | -8/Garrison | Entered Factory 8819 | -7/Factory | Evolved 2 slots: Utility x2 8934 | -7/Factory | Build established: Scavenger-Mutant 9456 | -7/Factory | Build established: Hacker-Mutant 9504 | -7/Factory | Discovered new exit (range 10) 9701 | -7/Factory | Cargo convoy interrupted 9809 | -7/Factory | Sucked down chute 9809 | -7/Factory | Entered Waste 9810 | -7/Waste | Joined by Warlord forces that had cleared the area 10177 | -7/Waste | Build established: Scavenger-Mutant 10231 | -7/Waste | Found Damper Plating 10260 | -7/Waste | Discovered new exit (range 16) 10330 | -7/Waste | A Compactor rumbled back to life 10332 | -7/Waste | Allies destroyed C-40 Crusher 10423 | -7/Waste | Entered Factory 10423 | -7/Factory | Accompanied by 17 allies 10502 | -7/Factory | Identified exit to Garrison 10564 | -7/Factory | Entered Garrison 10564 | -7/Garrison | Accompanied by 14 allies 10572 | -7/Garrison | Expanded RIF knowledge: Program Shield 10641 | -7/Garrison | Triggered checkpoint 10645 | -7/Garrison | Triggered checkpoint 10652 | -7/Garrison | Triggered checkpoint 10704 | -7/Garrison | Triggered checkpoint 10737 | -7/Garrison | Garrison Relay disabled 10782 | -7/Garrison | Discovered new exit (range 10) 10922 | -7/Garrison | Triggered checkpoint 10959 | -7/Garrison | Garrison Relay disabled 11123 | -7/Garrison | Entered Factory 11123 | -6/Factory | Accompanied by 9 allies 11123 | -6/Factory | Evolved 2 slots: Utility x2 11225 | -6/Factory | Identified exit to Lower Caves 11466 | -6/Factory | Discovered new exit (range 14) 11504 | -6/Factory | Build established: Hacker-Mutant 11664 | -6/Factory | Fabricated Imp. System Shield? 11725 | -6/Factory | Fabricated Linear Accelerator? 12185 | -6/Factory | Discovered new exit (range 4) 12894 | -6/Factory | Discovered new exit (range 10) 13045 | -6/Factory | Fabricated Imp. Hacking Suite (x1) 13389 | -6/Factory | Entered Lower Caves 13516 | -6/Lower Caves | Encountered a Warlord checkpoint 13595 | -6/Lower Caves | Spotted B-75 Beast 13778 | -6/Lower Caves | Learned location of 1 exit from Factory 13910 | -6/Lower Caves | Learned 4 Factory zone layouts 14095 | -6/Lower Caves | Discovered new exit (range 9) 14111 | -6/Lower Caves | Entered another Lower Caves area 14215 | -6/Lower Caves | Discovered new exit (range 9) 14670 | -6/Lower Caves | Learned location of 1 exit from Factory 15208 | -6/Lower Caves | Discovered new exit (range 10) 15230 | -6/Lower Caves | Entered Data Miner 15232 | -6/Data Miner | Discovered new exit (range 6) 15270 | -6/Data Miner | Met Data Miner 15304 | -6/Data Miner | Learned location of Section 7 (-2) 15304 | -6/Data Miner | Acquired the access code to Warlord's prototype stash 15344 | -6/Data Miner | Received God Mode back door access code from Data Miner 15394 | -6/Data Miner | Entered Proximity Caves 15396 | -5/Proximity Caves | Identified exit to Factory 15582 | -5/Proximity Caves | Escorted by Enhanced Grunt 16369 | -5/Proximity Caves | Entered Factory 16369 | -5/Factory | Evolved 2 slots: Propulsion x1, Utility x1 16370 | -5/Factory | Identified exit to Factory 16370 | -5/Factory | Identified exit to Upper Caves 16420 | -5/Factory | Repaired Cld. Particle Cannon 16614 | -5/Factory | Incoming investigation squad redirected 16959 | -5/Factory | Repaired Imp. Carbon-fiber Leg 16993 | -5/Factory | Crushed by falling debris 17043 | -5/Factory | Incoming investigation squad redirected 17182 | -5/Factory | Fabricated P-70 Sage (x2) 17202 | -5/Factory | Discovered exit to Factory (range 15) 17242 | -5/Factory | Sage 6b assimilated hostile W-25 Informer 17510 | -5/Factory | Discovered new exit (range 10) 17580 | -5/Factory | Assimilated P-70 Sage with FLK Orb 17583 | -5/Factory | Assimilated P-70 Sage with FLK Orb 17743 | -5/Factory | Garrison activated, responded to threat 17752 | -5/Factory | Sage 6c assimilated hostile G-50 Soldier 18200 | -5/Factory | Entered Extension 18269 | -5/Extension | Rescued A7 18449 | -5/Extension | Identified exit to Cetus 18886 | -5/Extension | Build established: Wizard-Mutant 18961 | -5/Extension | Spotted B-75 Beast 18978 | -5/Extension | Spotted B-75 Beast 18986 | -5/Extension | Assimilated B-75 Beast with FLK Orb 18994 | -5/Extension | Allies destroyed B-75 Beast 19192 | -5/Extension | Discovered exit to Factory (range 15) 19445 | -5/Extension | Rescued a captive Derelict 19528 | -5/Extension | Rescued a captive Derelict 19939 | -5/Extension | Entered Cetus 19939 | -5/Cetus | Accompanied by 9 allies (A7) 19944 | -5/Cetus | Acquired a Cetus Manufacturing Module code from A7 19966 | -5/Cetus | Spotted Cetus Guard 19967 | -5/Cetus | Spotted Cetus Guard 19967 | -5/Cetus | Spotted Cetus Guard 19977 | -5/Cetus | Spotted Cetus Guard 19985 | -5/Cetus | Allies destroyed Cetus Guard 19986 | -5/Cetus | Allies destroyed Cetus Guard 19989 | -5/Cetus | Destroyed Cetus Guard 19992 | -5/Cetus | Allies destroyed Cetus Guard 20093 | -5/Cetus | Started Cetus Manufacturing Module 20118 | -5/Cetus | Manufactured an Enhanced Grunt 20143 | -5/Cetus | Manufactured an Enhanced Grunt 20168 | -5/Cetus | Manufactured an Enhanced Grunt 20193 | -5/Cetus | Manufactured an Enhanced Grunt 20218 | -5/Cetus | Manufactured an Enhanced Grunt 20222 | -5/Cetus | Escorted A7 to Cetus Mainframe 20251 | -5/Cetus | Discovered new exit (range 15) 20293 | -5/Cetus | Spotted Cetus Guard 20293 | -5/Cetus | Spotted Cetus Guard 20296 | -5/Cetus | Spotted Cetus Guard 20303 | -5/Cetus | Allies destroyed Cetus Guard 20304 | -5/Cetus | Spotted Cetus Guard 20305 | -5/Cetus | Allies destroyed Cetus Guard 20319 | -5/Cetus | Destroyed Cetus Guard 20320 | -5/Cetus | Destroyed Cetus Guard 20321 | -5/Cetus | Discovered exit to Factory (range 15) 20334 | -5/Cetus | Met Revision 17 20364 | -5/Cetus | Extracted ID and sensor layout for unrecognized location from A7's data core 20426 | -5/Cetus | Entered Archives 20426 | -5/Archives | Accompanied by 4 allies 20460 | -5/Archives | Met Zhirov 20466 | -5/Archives | Reinforcements dispatched to Archives 20494 | -5/Archives | Read partially decrypted archive contents 20511 | -5/Archives | Reinforcements dispatched to Archives 20513 | -5/Archives | Zhirov warped through subspace 20522 | -5/Archives | Discovered new exit (range 13) 20531 | -5/Archives | Zhirov detonated Archives 20532 | -5/Archives | Core integrity fell below 50% 20532 | -5/Archives | Core integrity fell below 20% 20562 | -5/Archives | Lost 15 parts (1p5n7u2w) 20596 | -5/Archives | Discovered exit to Factory (range 16) 20841 | -5/Archives | Build established: Mutant 21028 | -5/Archives | Discovered new exit (range 10) 21229 | -5/Archives | Entered Hub_04(d) 21260 | -5/Hub_04(d) | System corruption reached 10% 21642 | -5/Hub_04(d) | Build established: Scavenger-Mutant 21821 | -5/Hub_04(d) | Spotted B-75 Beast 21950 | -5/Hub_04(d) | Garrison activated, responded to threat 22002 | -5/Hub_04(d) | Destroyed by G-50 Soldier with Heavy Laser Last Messages --------------- 21985_ Slug penetrates Wall. 21985_ Critical hit (Burn: +50). 21988_ Slug penetrates Wall. 21989_ Slug penetrates G-67 Veteran. 21990_ Penetrated by Slug. 21991_ Critical hit (Burn: +37). 21992_ Slug penetrates G-67 Veteran. 21993_ Penetrated by Slug. 21995_ Slug penetrates G-67 Veteran. 21995_ G-67 Veteran destroyed. 21995_ KE Penetrator destroyed. 21996_ Penetrated by Slug. 21997_ System corrupted: Matter fused (-7). 21999_ Slug penetrates Wall. 21999_ G-50 Soldier knocked back. 21999_ Penetrated by Slug. 22000_ Wheel destroyed. 22002_ Penetrated by Slug. 22002_ Slug penetrates Y-64 Sentinel. [Achievement: I Think I Know What's Going On] Map ----- +----------------------------------------------------+ | ?????????????????????????????????????????????????? | | ?????????????????????????????????????????????????? | | ?????????????????????????????????????????????????? | | ?????????????????????????????????????????????????? | | ?????????????????????????????????????????????????? | | ?????????????????????????????????????????????????? | | ?????????????????????????????????????????????????? | | ?????????????????????????????????????????????????? | | ?????????????????????????????????????????????????? | | ?????????????????????????????????????????????????? | | ?????????????????????????????????????????????????? | | ?????????????????????????????????????????????????? | | ?????????????????????????????????????????????????? | | ?????????????????????????????????????????????????? | | ?????????????????????? ?????????????????????????? | | ??????????????????????##+???????###+#????????????? | | ??????????????????????? ####### # #????????????? | | ????????????????????????? #????????????? | | ????????????????????????